bitfinex-derivatives/quotes_SOLF0:USTF0_20241206
["timestamp","ask_amount","ask_price","bid_price","bid_amount"]
[1733518401199,10.15141329,238.27,238.11,10.15141329]
[1733518401498,10.15141329,238.27,238.12,2.44]
[1733518401499,2.0953,238.18,238.12,2.44]
[1733518402601,2.0953,238.18,238.13,2.0957]
[1733518403398,2.0953,238.18,238.14,2.0957]
[1733518404003,2.0952,238.19,238.14,2.0957]
[1733518404194,2.44,238.26,238.14,10.15141329]
[1733518404402,12.59141329,238.3,238.18,2.0953]
[1733518404601,12.59141329,238.3,238.14,10.15141329]
[1733518405000,12.59141329,238.3,238.17,2.0953]
[1733518405201,12.59141329,238.3,238.14,10.15141329]
[1733518406707,2.095,238.22,238.17,2.0954]
[1733518409100,2.0951,238.21,238.17,2.0954]
[1733518409708,2.0951,238.21,238.14,10.15141329]
[1733518410009,2.0951,238.21,238.16,2.0955]
[1733518410605,12.59141329,238.3,238.16,2.0955]
[1733518411801,2.0951,238.21,238.16,2.0955]
[1733518412405,2.0952,238.2,238.16,2.0955]
[1733518414109,12.59141329,238.3,238.14,10.15141329]
[1733518414312,2.0951,238.21,238.14,10.15141329]
[1733518414508,12.59141329,238.3,238.14,10.15141329]
[1733518415510,1.3781,238.31,238.2,10.15141329]
[1733518415707,6.2786,238.47,238.21,2.34]
[1733518415708,12.49141329,238.36,238.21,2.34]
[1733518415903,10.15141329,238.36,238.21,3.7088]
[1733518416107,2.0944,238.29,238.24,2.0948]
[1733518416309,10.15141329,238.36,238.24,2.0948]
[1733518416711,2.0944,238.29,238.24,2.0948]
[1733518418417,2.0943,238.31,238.26,2.0946]
[1733518418619,1.3216,238.38,238.27,2.34]
[1733518419520,1.3216,238.38,238.28,2.0944]
[1733518419825,2.0939,238.34,238.29,2.0943]
[1733518421717,12.49141329,238.41,238.29,2.0943]
[1733518422214,7.169616,238.4,238.31,2.0942]
[1733518422415,10.15141329,238.44,238.29,10.15141329]
[1733518422619,1.4125,238.45,238.32,10.15141329]
[1733518422813,1.4125,238.45,238.33,2.34]
[1733518423318,4.1846,238.53,238.33,2.34]
[1733518423515,10.15141329,238.49,238.35,10.15141329]
[1733518423919,2.093,238.45,238.38,2.0935]
[1733518424115,12.49141329,238.49,238.38,2.0935]
[1733518424518,2.0931,238.44,238.35,10.15141329]
[1733518424723,2.0931,238.44,238.4,2.0934]
[1733518425021,2.0931,238.44,238.39,2.34]
[1733518425321,2.0931,238.44,238.39,4.4335]
[1733518428818,2.34,238.49,238.34,1.3484]
[1733518428819,10.15141329,238.45,238.34,1.3484]
[1733518429118,10.15141329,238.45,238.15,43.64]
[1733518429119,10.15141329,238.45,238.33,2.34]
[1733518429320,2.0938,238.35,238.32,2.34]
[1733518429525,10.15141329,238.42,238.32,2.34]
[1733518430020,10.15141329,238.42,238.32,4.4341]
[1733518430717,10.15141329,238.42,238.32,2.0941]
[1733518431517,2.0937,238.37,238.32,2.0941]
[1733518435328,2.0937,238.37,238.33,2.094]
[1733518440529,10.15141329,238.39,238.28,337.89256]
[1733518441332,10.15141329,238.39,238.28,340.23256]
[1733518441736,2.0942,238.32,238.28,342.32696]
[1733518443140,10.15141329,238.39,238.28,340.23256]
[1733518443340,1.3664,238.41,238.28,340.23256]
[1733518444434,10.15141329,238.37,238.28,337.89256]
[1733518444636,10.15141329,238.34,238.28,337.89256]
[1733518445538,2.22,238.37,238.28,337.89256]
[1733518445739,2.0944,238.29,238.28,337.89256]
[1733518455050,2.0939,238.34,238.28,337.89256]
[1733518455342,2.22,238.36,238.28,337.89256]
[1733518455745,2.0938,238.33,238.29,2.0941]
[1733518456745,10.15141329,238.38,238.29,2.0941]
[1733518456944,2.0939,238.32,238.29,2.0941]
[1733518460246,2.094,238.31,238.28,2.0942]
[1733518461549,2.0939,238.32,238.28,2.0942]
[1733518463250,2.094,238.31,238.28,2.0942]
[1733518464052,2.22,238.4,238.28,2.0942]
[1733518464053,2.0939,238.32,238.28,2.0942]
[1733518464551,6.48591043,238.33,238.26,1.364]
[1733518464852,2.094,238.31,238.27,2.0942]
[1733518466050,8.57991043,238.31,238.27,2.0942]
[1733518466348,6.48591043,238.33,238.26,1.364]
[1733518466556,2.0942,238.28,238.26,1.364]
[1733518467850,2.0941,238.29,238.26,1.364]
[1733518469148,2.0941,238.29,238.26,3.4584]
[1733518469649,2.22,238.4,238.33,2.0938]
[1733518469650,2.0936,238.36,238.33,2.0938]
[1733518471250,6.48591043,238.39,238.3,6.48591043]
[1733518471454,2.0935,238.37,238.3,6.48591043]
[1733518472051,2.22,238.47,238.32,6.48591043]
[1733518472255,6.48591043,238.42,238.34,6.48591043]
[1733518472457,6.48591043,238.44,238.37,6.48591043]
[1733518472662,6.48591043,238.44,238.34,2.22]
[1733518472663,6.48591043,238.42,238.35,6.48591043]
[1733518472850,6.48591043,238.42,238.34,2.22]
[1733518473753,2.0932,238.4,238.36,2.0935]
[1733518473961,6.48591043,238.4,238.34,2.22]
[1733518474253,6.48591043,238.38,238.34,2.22]
[1733518474854,2.0935,238.36,238.34,2.22]
[1733518475160,6.48591043,238.38,238.34,2.22]
[1733518475360,2.0936,238.36,238.34,2.22]
[1733518476461,6.48591043,238.36,238.27,2.7521]
[1733518476660,2.2,238.41,238.27,1.4126]
[1733518476661,6.48591043,238.31,238.27,1.4126]
[1733518476859,6.48591043,238.31,238.26,1.364]
[1733518477061,2.0942,238.28,238.26,1.364]
[1733518478261,2.0943,238.27,238.23,2.2]
[1733518479761,2.0943,238.27,238.22,2.0947]
[1733518479961,2.0943,238.27,238.22,4.2947]
[1733518480461,2.2,238.36,238.22,2.2]
[1733518481363,2.0939,238.32,238.26,2.0944]
[1733518481558,2.2,238.36,238.26,2.0944]
[1733518482365,2.2,238.36,238.22,2.2]
[1733518482558,10.13811185,238.35,238.22,2.2]
[1733518482759,2.0943,238.28,238.22,2.2]
[1733518483771,2.0943,238.28,238.24,2.0946]
[1733518484362,10.13811185,238.35,238.22,2.2]
[1733518484363,2.094,238.31,238.22,2.0947]
[1733518484570,10.13811185,238.35,238.22,2.0947]
[1733518484960,7.16390207,238.34,238.22,2.0947]
[1733518485161,10.13811185,238.35,238.22,2.0947]
[1733518485367,7.16360173,238.34,238.22,2.0947]
[1733518485566,10.13811185,238.35,238.22,2.0947]
[1733518485765,2.094,238.31,238.22,2.0947]
[1733518485970,10.13811185,238.35,238.22,2.0947]
[1733518486171,7.16362748,238.34,238.22,2.0947]
[1733518486367,2.0943,238.27,238.22,2.0947]
[1733518487462,2.0943,238.27,238.23,2.0947]
[1733518488668,2.0942,238.28,238.24,2.0945]
[1733518489071,2.2,238.35,238.2,12.33811185]
[1733518489268,10.13811185,238.38,238.29,2.0941]
[1733518489269,2.0938,238.33,238.29,2.0941]
[1733518489468,2.2,238.39,238.26,10.13811185]
[1733518489670,2.2,238.4,238.29,10.13811185]
[1733518490070,2.2,238.4,238.3,1.399]
[1733518490469,2.0934,238.37,238.3,1.399]
[1733518491068,2.0934,238.37,238.32,2.0938]
[1733518493771,2.0933,238.38,238.34,2.0937]
[1733518493971,10.13811185,238.45,238.3,11.53711185]
[1733518494273,2.2,238.43,238.3,11.53711185]
[1733518494869,7.16298824,238.42,238.3,11.53711185]
[1733518495066,2.2,238.43,238.3,11.53711185]
[1733518495367,7.16592209,238.42,238.3,11.53711185]
[1733518495576,2.2,238.43,238.3,11.53711185]
[1733518495875,2.0934,238.38,238.3,11.53711185]
[1733518496276,2.0934,238.38,238.33,2.0937]
[1733518498071,2.2,238.43,238.32,2.2]
[1733518498278,2.0935,238.37,238.32,2.2]
[1733518498674,2.0935,238.37,238.33,2.0937]
[1733518499178,2.0935,238.37,238.3,11.53711185]
[1733518499179,10.13811185,238.42,238.3,1.399]
[1733518499375,7.16483688,238.41,238.3,1.399]
[1733518499578,10.13811185,238.42,238.3,1.399]
[1733518499778,2.0937,238.35,238.31,2.094]
[1733518500377,2.0934,238.38,238.32,10.13811185]
[1733518500581,2.0934,238.38,238.35,6.48112254]
[1733518500773,2.0934,238.38,238.33,6.48112254]
[1733518501181,2.0934,238.38,238.34,2.0936]
[1733518501582,6.48112254,238.38,238.31,2.2]
[1733518502083,6.48112254,238.38,238.32,6.48112254]
[1733518502682,2.0936,238.35,238.32,6.48112254]
[1733518502982,6.48112254,238.4,238.33,2.0937]
[1733518503184,2.0934,238.38,238.34,6.48112254]
[1733518503380,2.0934,238.38,238.34,8.57482254]
[1733518506282,2.0934,238.38,238.35,2.0936]
[1733518510190,2.0934,238.38,238.34,6.48112254]
[1733518510384,2.0934,238.38,238.34,8.57482254]
[1733518511384,2.22,238.45,238.31,2.2]
[1733518511687,17.75093337,238.44,238.3,1.399]
[1733518511878,17.75093337,238.43,238.33,6.48112254]
[1733518512081,2.0935,238.37,238.33,8.57492254]
[1733518512283,6.48112254,238.39,238.31,6.48112254]
[1733518513782,2.0935,238.36,238.32,2.0939]
[1733518515081,2.9885,238.44,238.33,6.48112254]
[1733518515287,2.0935,238.37,238.33,8.57492254]
[1733518515681,2.0935,238.36,238.33,6.48112254]
[1733518516188,2.0937,238.34,238.3,3.493]
[1733518516389,2.0937,238.34,238.31,6.48112254]
[1733518516592,6.48112254,238.39,238.31,6.48112254]
[1733518517180,0.7685,238.44,238.31,6.48112254]
[1733518517382,6.48112254,238.38,238.3,3.493]
[1733518517692,6.48112254,238.39,238.31,6.48112254]
[1733518517888,6.48112254,238.33,238.09,25.08980565]
[1733518518190,6.48112254,238.29,238.21,1.3643]
[1733518518981,2.0945,238.25,238.21,1.3643]
[1733518519189,6.48112254,238.29,238.21,1.3643]
[1733518519388,6.48112254,238.29,238.22,6.48112254]
[1733518519583,2.4,238.32,238.22,6.48112254]
[1733518519890,8.88112254,238.32,238.24,6.48112254]
[1733518520086,2.0943,238.28,238.24,6.48112254]
[1733518521890,6.48112254,238.28,238.21,1.3643]
[1733518524294,6.48112254,238.28,238.2,6.48112254]
[1733518524797,2.0946,238.24,238.2,6.48112254]
[1733518525388,6.48112254,238.28,238.2,6.48112254]
[1733518525389,2.0944,238.26,238.2,6.48112254]
[1733518525589,6.48112254,238.28,238.2,6.48112254]
[1733518526583,2.0946,238.24,238.2,6.48112254]
[1733518527391,2.0946,238.24,238.2,8.57602254]
[1733518528196,2.0946,238.24,238.2,6.48112254]
[1733518528895,2.0946,238.24,238.2,8.57602254]
[1733518529195,2.0946,238.24,238.2,2.0949]
[1733518529995,2.0945,238.25,238.21,8.57592254]
[1733518530196,2.0945,238.25,238.21,2.0948]
[1733518530396,2.0945,238.25,238.21,8.57592254]
[1733518530794,6.48112254,238.3,238.21,6.48112254]
[1733518530991,2.0942,238.28,238.23,8.57572254]
[1733518531191,4.1849,238.49,238.27,6.48112254]
[1733518531495,6.48112254,238.39,238.31,6.48112254]
[1733518532091,2.4,238.44,238.35,6.48112254]
[1733518532297,2.4,238.44,238.37,6.48112254]
[1733518532298,8.88112254,238.44,238.37,6.48112254]
[1733518532494,8.88112254,238.44,238.35,6.48112254]
[1733518533792,2.0932,238.4,238.35,2.0936]
[1733518533988,2.0932,238.4,238.35,8.57472254]
[1733518537403,2.0933,238.39,238.35,2.0936]
[1733518537805,2.0933,238.39,238.36,6.48112254]
[1733518539309,2.0933,238.39,238.35,2.0936]
[1733518541814,1.3858,238.53,238.38,6.48112254]
[1733518542011,6.48112254,238.52,238.43,6.48112254]
[1733518542217,6.48112254,238.5,238.43,6.48112254]
[1733518542619,2.0927,238.46,238.43,6.48112254]
[1733518543413,2.0927,238.46,238.41,6.48112254]
[1733518543619,2.0927,238.46,238.43,6.48112254]
[1733518544319,2.0927,238.46,238.41,6.48112254]
[1733518544519,2.0927,238.46,238.42,2.4]
[1733518545719,2.0927,238.45,238.42,2.4]
[1733518546021,2.0927,238.45,238.42,8.88112254]
[1733518548817,2.0927,238.45,238.42,6.48112254]
[1733518549020,2.0925,238.48,238.43,2.38]
[1733518549316,6.48112254,238.5,238.43,2.38]
[1733518549516,2.0925,238.48,238.43,2.38]
[1733518549814,6.48112254,238.49,238.42,6.48112254]
[1733518550012,6.48112254,238.49,238.43,2.38]
[1733518550916,2.0927,238.45,238.43,2.38]
[1733518551912,2.0927,238.45,238.44,2.38]
[1733518555915,4.1824,238.63,238.44,8.86112254]
[1733518556116,4.1824,238.63,238.48,6.48112254]
[1733518556117,6.48112254,238.56,238.48,6.48112254]
[1733518556322,2.0922,238.51,238.48,6.48112254]
[1733518556516,6.48112254,238.52,238.47,1.4054]
[1733518557219,6.48112254,238.54,238.47,1.4054]
[1733518557722,2.0924,238.51,238.47,3.4982]
[1733518558016,2.38,238.62,238.48,6.48112254]
[1733518558217,2.0923,238.53,238.49,2.0926]
[1733518558416,2.0923,238.53,238.5,2.38]
[1733518559111,2.0924,238.52,238.5,2.38]
[1733518559511,2.0924,238.52,238.38,2.6318]
[1733518559512,6.48112254,238.52,238.38,2.6318]
[1733518559719,2.0931,238.44,238.39,8.57452254]
[1733518560424,6.48112254,238.43,238.38,2.6318]
[1733518560616,6.48112254,238.43,238.35,1.4027]
[1733518560918,6.48112254,238.43,238.36,8.86112254]
[1733518561419,6.48112254,238.43,238.37,2.38]
[1733518562621,2.0934,238.4,238.37,2.38]
[1733518565419,6.48112254,238.43,238.37,2.38]
[1733518565622,2.0933,238.41,238.37,2.38]
[1733518566624,2.0933,238.41,238.37,4.4736]
[1733518567426,2.0935,238.39,238.37,2.38]
[1733518567632,6.48112254,238.43,238.37,2.38]
[1733518567932,1.342,238.54,238.37,2.38]
[1733518568118,1.342,238.54,238.39,6.48112254]
[1733518568119,6.48112254,238.47,238.39,6.48112254]
[1733518568826,6.48112254,238.47,238.4,2.0934]
[1733518568827,2.0931,238.44,238.4,2.0934]
[1733518570124,2.093,238.45,238.4,2.0934]
[1733518570326,6.48112254,238.47,238.4,2.0934]
[1733518571132,2.0932,238.42,238.38,2.0935]
[1733518572733,2.0932,238.42,238.38,8.57462254]
[1733518572926,2.38,238.53,238.38,6.48112254]
[1733518573124,2.0931,238.43,238.39,2.0934]
[1733518573629,2.093,238.44,238.4,2.0933]
[1733518574927,2.093,238.44,238.4,8.57442254]
[1733518577929,2.0932,238.43,238.39,2.0935]
[1733518580029,2.0932,238.43,238.4,6.48112254]
[1733518580431,2.0932,238.43,238.39,2.0935]
[1733518582933,2.0932,238.43,238.37,2.38]
[1733518582934,2.0929,238.46,238.4,6.48112254]
[1733518583135,6.48112254,238.49,238.4,6.48112254]
[1733518583835,6.48112254,238.49,238.42,6.48112254]
[1733518584037,6.48112254,238.49,238.43,2.34]
[1733518584732,7.16949755,238.48,238.43,2.34]
[1733518584933,6.48112254,238.49,238.43,2.34]
[1733518584934,2.093,238.45,238.43,2.34]
[1733518587741,4.1825,238.65,238.44,6.48112254]
[1733518587940,17.77979964,238.56,238.48,6.48112254]
[1733518588239,7.17234683,238.55,238.49,2.34]
[1733518588933,2.0922,238.54,238.49,4.4326]
[1733518591343,2.0922,238.53,238.49,4.4326]
[1733518592747,2.34,238.63,238.52,2.0923]
[1733518592934,17.76317633,238.62,238.52,6.48112254]
[1733518593135,8.57282254,238.6,238.54,8.57322254]
[1733518593337,8.57282254,238.6,238.55,2.34]
[1733518593844,6.48112254,238.6,238.55,2.34]
[1733518594038,2.0916,238.6,238.55,4.432]
[1733518594439,6.48112254,238.62,238.55,4.432]
[1733518594639,2.0916,238.6,238.55,4.432]
[1733518595039,6.48112254,238.62,238.55,4.432]
[1733518595434,2.0916,238.6,238.55,4.432]
[1733518595645,6.48112254,238.62,238.55,4.432]
[1733518595941,2.0916,238.6,238.55,4.432]
[1733518596144,2.0916,238.6,238.56,2.092]
[1733518596842,8.57272254,238.6,238.56,2.092]
[1733518597046,6.48112254,238.58,238.45,1.3001]
[1733518597241,6.48112254,238.53,238.45,3.6401]
[1733518597446,6.48112254,238.51,238.45,3.6401]
[1733518597645,6.48112254,238.53,238.45,3.6401]
[1733518597849,6.48112254,238.53,238.46,2.0928]
[1733518598342,2.0924,238.51,238.46,2.0928]
[1733518599245,2.0923,238.52,238.48,2.0927]
[1733518599443,6.48112254,238.55,238.46,6.48112254]
[1733518599645,6.48112254,238.55,238.48,6.48112254]
[1733518600747,2.0923,238.53,238.49,2.0926]
[1733518602546,2.0923,238.52,238.48,2.0927]
[1733518602949,2.0923,238.52,238.48,8.57382254]
[1733518603349,2.0923,238.52,238.48,2.0927]
[1733518604143,2.0924,238.51,238.46,681.27519254]
[1733518604450,6.48112254,238.51,238.46,674.79407]
[1733518605349,2.0927,238.48,238.46,674.79407]
[1733518609750,2.0926,238.49,238.46,674.79407]
[1733518610052,2.0926,238.49,238.47,6.48112254]
[1733518610352,6.48112254,238.54,238.47,6.48112254]
[1733518610556,6.48112254,238.52,238.46,674.79407]
[1733518610951,2.0925,238.5,238.46,676.88687]
[1733518611352,6.48112254,238.54,238.46,674.79407]
[1733518611548,6.48112254,238.54,238.47,6.48112254]
[1733518611753,6.48112254,238.54,238.47,8.57392254]
[1733518612348,2.0925,238.51,238.46,676.88687]
[1733518612849,2.1411,238.6,238.46,674.79407]
[1733518612850,6.48112254,238.5,238.46,674.79407]
[1733518613052,6.48112254,238.52,238.46,674.79407]
[1733518614757,2.0927,238.49,238.46,674.79407]
[1733518616456,6.48112254,238.52,238.46,674.79407]
[1733518616754,2.0925,238.51,238.46,674.79407]
[1733518617350,2.0925,238.51,238.47,2.0928]
[1733518618149,2.0925,238.51,238.46,676.88697]
[1733518619259,6.48112254,238.53,238.46,676.88697]
[1733518619461,2.0925,238.5,238.46,676.88697]
[1733518620157,6.48112254,238.51,238.46,674.79407]
[1733518620858,6.48112254,238.47,238.46,674.79407]
[1733518621055,8.57392254,238.47,238.46,674.79407]
[1733518621457,6.48112254,238.47,238.37,6.48112254]
[1733518621655,6.48112254,238.45,238.37,6.48112254]
[1733518623259,2.0931,238.41,238.37,6.48112254]
[1733518624762,2.093,238.42,238.37,8.57452254]
[1733518625861,6.4838,238.58,238.41,6.48112254]
[1733518626062,6.4838,238.58,238.36,1007.52962]
[1733518626063,6.48112254,238.53,238.45,6.48112254]
[1733518626455,2.0924,238.49,238.45,6.48112254]
[1733518626660,2.3,238.58,238.47,6.48112254]
[1733518626861,6.48112254,238.55,238.47,6.48112254]
[1733518627865,6.48112254,238.56,238.49,6.48112254]
[1733518628066,6.48112254,238.56,238.48,2.3]
[1733518628462,6.48112254,238.56,238.48,8.78112254]
[1733518628663,2.0921,238.52,238.48,8.78112254]
[1733518631069,6.48112254,238.56,238.48,8.78112254]
[1733518631278,2.0923,238.53,238.48,10.87372254]
[1733518634079,2.0923,238.53,238.48,8.78112254]
[1733518634887,2.0923,238.52,238.48,8.78112254]
[1733518635481,6.48112254,238.52,238.46,2.3]
[1733518636782,2.0928,238.47,238.46,2.3]
[1733518637184,2.093,238.44,238.43,2.3]
[1733518644889,6.48112254,238.48,238.39,6.48112254]
[1733518645089,2.0933,238.41,238.39,8.74112254]
[1733518645891,2.0931,238.43,238.39,8.74112254]
[1733518647693,6.48112254,238.44,238.37,1.3728]
[1733518647895,6.48112254,238.39,238.31,6.48112254]
[1733518648084,6.48112254,238.37,238.29,6.48112254]
[1733518648391,6.48112254,238.37,238.31,6.48112254]
[1733518648392,2.0936,238.37,238.31,6.48112254]
[1733518648698,2.0936,238.37,238.33,6.48112254]
[1733518648890,2.26,238.41,238.26,6.2027]
[1733518649191,2.26,238.46,238.36,1014.01074254]
[1733518649495,6.48112254,238.45,238.36,1014.01074254]
[1733518649695,2.0933,238.42,238.36,1016.10444254]
[1733518650291,2.0933,238.41,238.36,1016.10444254]
[1733518650488,6.48112254,238.45,238.36,1014.01074254]
[1733518651195,6.48112254,238.45,238.38,6.48112254]
[1733518651690,2.0933,238.41,238.38,6.48112254]
[1733518652191,2.0933,238.41,238.32,2.26]
[1733518652192,12.56,238.36,238.1,43.58886531]
[1733518652381,12.56,238.36,237.95,145.22874082]
[1733518652382,6.48112254,238.1,237.73,5.80814566]
[1733518652583,2.26,238.09,237.77,6.48112254]
[1733518652782,10.55527604,238.08,237.78,3.92452306]
[1733518652987,6.279,238.45,237.95,6.48112254]
[1733518652988,17.69845787,238.07,237.95,6.48112254]
[1733518653292,6.48112254,238.05,237.97,6.48112254]
[1733518653488,6.48112254,238.07,237.99,6.48112254]
[1733518653683,6.48112254,238.07,238.0,2.26]
[1733518654589,2.0958,238.13,238.0,2.26]
[1733518654788,8.61770011,238.12,238.0,2.26]
[1733518655089,2.0958,238.13,238.01,2.26]
[1733518655292,2.0958,238.13,238.02,2.26]
[1733518658393,2.0959,238.12,238.02,2.26]
[1733518658796,16.25030065,238.1,237.97,1.3303]
[1733518658990,16.25030065,238.06,237.97,1.3303]
[1733518659187,16.25030065,238.06,237.98,2.26]
[1733518659389,16.25030065,238.06,237.84,1.3116]
[1733518659589,16.25030065,238.06,237.87,1.3216]
[1733518659790,16.25030065,238.02,237.88,2.26]
[1733518660003,16.25030065,238.02,237.87,1.3216]
[1733518660193,16.25030065,237.98,237.88,2.26]
[1733518660389,16.25030065,237.98,237.84,1.3116]
[1733518660594,16.25030065,237.94,237.84,1.3116]
[1733518660898,2.0976,237.93,237.84,1.3116]
[1733518661198,16.25030065,237.94,237.79,2.10269565]
[1733518661492,16.25030065,237.94,237.76,16.25030065]
[1733518661694,2.26,237.95,237.77,5.0782]
[1733518661890,4.3574,237.95,237.77,2.6582]
[1733518662090,16.25030065,237.98,237.8,16.25030065]
[1733518662294,16.25030065,237.98,237.81,1.3166]
[1733518662498,2.0974,237.95,237.83,2.0984]
[1733518662699,2.0974,237.95,237.84,2.42]
[1733518662893,2.0974,237.95,237.85,2.42]
[1733518663296,2.0975,237.94,237.85,2.42]
[1733518663494,16.25030065,237.98,237.85,2.42]
[1733518664202,2.42,237.99,237.85,2.42]
[1733518664399,16.25030065,237.98,237.85,2.42]
[1733518664601,16.25030065,237.98,237.81,1.3166]
[1733518664805,18.67030065,237.99,237.82,2.42]
[1733518665001,2.0974,237.95,237.83,2.0983]
[1733518665399,2.0974,237.95,237.82,2.42]
[1733518666597,2.0973,237.96,237.85,2.0982]
[1733518666797,2.42,237.99,237.84,16.25030065]
[1733518667103,2.0971,237.98,237.88,2.0979]
[1733518667296,2.0971,237.98,237.88,4.5179]
[1733518667502,16.25030065,238.05,237.88,2.42]
[1733518667702,2.097,238.0,237.9,2.0978]
[1733518668298,2.0972,237.98,237.89,1.3948]
[1733518668604,2.42,238.04,237.89,1.3948]
[1733518668999,2.0969,238.01,237.9,2.0977]
[1733518669197,2.0969,238.01,237.89,2.7359]
[1733518669602,2.0969,238.01,237.92,2.0976]
[1733518670203,16.25030065,238.1,237.89,2.7359]
[1733518670402,2.42,238.08,237.89,2.7359]
[1733518670896,2.0965,238.05,237.97,2.0971]
[1733518671102,2.42,238.08,237.96,2.42]
[1733518671604,2.0964,238.06,237.96,2.42]
[1733518672005,2.0964,238.06,237.89,2.7359]
[1733518672006,18.67030065,238.1,237.94,2.42]
[1733518672206,18.67030065,238.1,237.93,1.3637]
[1733518672207,16.25030065,238.06,237.93,1.3637]
[1733518672603,2.0969,238.01,237.93,1.3637]
[1733518672802,16.25030065,238.06,237.93,1.3637]
[1733518674207,2.0968,238.01,237.93,1.3637]
[1733518674504,18.67030065,238.1,237.93,1.3637]
[1733518674710,2.0965,238.05,237.96,2.0973]
[1733518674909,18.67030065,238.1,237.97,2.44]
[1733518675508,2.0964,238.06,237.97,2.44]
[1733518675709,18.67030065,238.1,237.97,2.44]
[1733518675911,18.69030065,238.14,237.97,2.44]
[1733518676412,18.69030065,238.14,237.97,4.5371]
[1733518676802,2.0963,238.07,237.97,4.5371]
[1733518677009,2.0963,238.07,237.98,2.0971]
[1733518677402,18.69030065,238.14,237.95,2.72]
[1733518678407,18.69030065,238.14,237.96,2.0972]
[1733518679509,300.1942945,238.47,237.95,2.72]
[1733518679715,16.25030065,238.25,238.07,2.0963]
[1733518679913,18.97030065,238.25,238.08,4.0194]
[1733518680108,2.0955,238.16,238.09,1.321]
[1733518681409,2.0957,238.14,238.09,1.321]
[1733518681615,16.25030065,238.21,238.09,1.321]
[1733518682005,2.0959,238.12,238.09,1.321]
[1733518683112,2.0961,238.1,238.08,2.72]
[1733518683312,16.25030065,238.32,238.03,1.3593]
[1733518683313,18.97030065,238.17,238.03,1.3593]
[1733518683514,2.72,238.16,238.03,1.3593]
[1733518684619,2.0963,238.07,238.03,1.3593]
[1733518684813,2.72,238.16,238.03,1.3593]
[1733518685714,16.25030065,238.25,238.05,16.25030065]
[1733518685909,2.72,238.24,238.05,16.25030065]
[1733518686110,2.0954,238.17,238.09,16.25030065]
[1733518686316,2.0954,238.17,238.1,1.3004]
[1733518686617,2.0954,238.17,238.1,2.6652]
[1733518688308,2.0955,238.16,238.1,2.6652]
[1733518688511,2.72,238.24,238.1,2.6652]
[1733518688714,16.25030065,238.29,238.1,2.6652]
[1733518688715,2.72,238.25,238.1,2.6652]
[1733518690414,16.25030065,238.29,238.1,2.6652]
[1733518690623,2.0954,238.18,238.1,2.6652]
[1733518691722,2.0954,238.18,238.1,4.7612]
[1733518694225,2.0954,238.17,238.1,4.7612]
[1733518695725,2.0954,238.17,238.11,2.0959]
[1733518696122,16.25030065,238.29,238.12,1.3062]
[1733518696426,18.97030065,238.29,238.12,1.3062]
[1733518696822,16.25030065,238.21,238.1,2.6652]
[1733518697432,7.96360125,238.2,238.1,2.6652]
[1733518697732,16.25030065,238.21,238.1,2.6652]
[1733518697930,7.96313314,238.2,238.1,2.6652]
[1733518698126,7.96313314,238.19,238.1,2.6652]
[1733518698326,2.0959,238.12,238.1,2.6652]
[1733518700031,16.25030065,238.21,238.05,2.72]
[1733518700232,7.96231318,238.2,238.05,4.8164]
[1733518700528,7.96231318,238.19,238.05,2.72]
[1733518700730,16.25030065,238.21,238.05,2.72]
[1733518700925,7.96146187,238.2,238.05,2.72]
[1733518701122,16.25030065,238.21,238.05,2.72]
[1733518701123,7.96146187,238.19,238.05,2.72]
[1733518701329,16.25030065,238.21,238.05,2.72]
[1733518701630,7.96087831,238.2,238.05,2.72]
[1733518701821,7.96087831,238.19,238.05,2.72]
[1733518702026,2.0959,238.12,238.05,4.8164]
[1733518703229,2.0957,238.15,238.08,2.0962]
[1733518703431,2.72,238.23,238.06,1.324]